Cogmind - Beta 16 @@@ ROGUE MODE // 2025.12.24 @ 09:39:26 Player: deadnoob Result: Destroyed by S-10 Pest with Light Assault Rifle Performance ------------- Evolutions (0) 0 Regions Visited (2) 400 Robots Destroyed (35) 175 Value Destroyed (860) 860 Prototype IDs (0) 0 Alien Tech Used (0) 0 Bonus (-196) -196 TOTAL SCORE: 1239 Bonus ------- Friendly Fire -196 Cogmind --------- Core Integrity 0/250 Matter 300/300 Energy 99/100 System Corruption 11% Temperature Cool (0) Movement Treading (240) Ox1 Location -10/Subcaves Parts ------- > --- POWER (1) -------- (None) > --- PROPULSION (2) --- Light Treads > --- UTILITY (2) ------ Large Storage Unit Seismic Detector > --- WEAPON (2) ------- Hammer Hammer > --- INVENTORY (15) --- Subdweller Power Source Subdweller Power Source Subdweller Monowheel Disposable Heat Sink Subdweller Optics Seismic Detector Subdweller Beam Cannon Light Assault Rifle Light Assault Rifle Subdweller Shrapnel Launcher Peak State ------------ > --- POWER ------------ Subdweller Power Source > --- PROPULSION ------- Light Treads Light Treads > --- UTILITY ---------- Large Storage Unit Makeshift Thermal Plating > --- WEAPON ----------- Subdweller Laser Light Cannon > --- INVENTORY -------- Subdweller Power Source Subdweller Power Source Light Treads Subdweller Monowheel Disposable Heat Sink Subdweller Optics Seismic Detector Seismic Detector Subdweller Beam Cannon Light Assault Rifle Light Assault Rifle Light Cannon Subdweller Shrapnel Launcher Hammer Hammer [Rating: 14] Favorites ----------- Power Subdweller Power Source Engine Subdweller Power Source Propulsion Light Treads Treads Light Treads Leg Aluminum Leg Utility Large Storage Unit Device Seismic Detector Storage Large Storage Unit Processor Targeting Computer Protection Makeshift Thermal Plating Weapon Light Cannon Energy Gun Small Laser Energy Cannon Subdweller Beam Cannon Ballistic Gun Light Assault Rifle Ballistic Cannon Light Cannon Launcher Subdweller Shrapnel Launcher Impact Weapon Hammer Build | -11 -10 -10 ------- Run | Yrd Mat Sub Slots Evolved . | . . . Power . | . . . Propulsion . | . . . Utility . | . . . Weapon . | . . . Parts Attached 29 | 1 11 17 Power 3 | . . 3 Engine 3 | . . 3 Core . | . . . Reactor . | . . . Propulsion 7 | . 4 3 Treads 6 | . 3 3 Leg 1 | . 1 . Wheel . | . . . Hover . | . . . Flight . | . . . Utility 6 | . 3 3 Device 2 | . 1 1 Storage 1 | . 1 . Processor 2 | . 1 1 Hackware . | . . . Protection 1 | . . 1 Artifact . | . . . Weapon 13 | 1 4 8 Energy Gun 2 | 1 . 1 Energy Cannon 1 | . . 1 Ballistic Gun 3 | . . 3 Ballistic Cannon 4 | . 2 2 Launcher 1 | . . 1 Special Weapon . | . . . Impact Weapon 2 | . 2 . Slashing Weapon . | . . . Piercing Weapon . | . . . Special Melee Weapon . | . . . Unidentified Prototypes . | . . . Corrupted Parts 1 | . . 1 System Corruption 11 | . . 11 Parts Lost 15 | . . 15 Power 3 | . . 3 Propulsion 5 | . . 5 Utility 2 | . . 2 Weapon 5 | . . 5 Highest Loss Streak 4 | . . 4 To Critical Strikes . | . . . Average Backups 12 | 4 10 12 Power 1 | 1 1 1 Propulsion 2 | 2 3 1 Utility 3 | . 1 3 Weapon 5 | 1 4 5 Tool/Special . | . . . Unused Backups 12 | . 4 8 Power 4 | . 1 3 Propulsion 2 | . 1 1 Utility 4 | . 1 3 Weapon 2 | . 1 1 Tool/Special . | . . . Average Slot Usage (%) 86 | . 96 85 Engine 13 | . 14 13 Treads 21 | . 21 21 Device 3 | . . 4 Storage 14 | . 14 14 Processor 4 | . 10 4 Protection 1 | . . 1 Energy Gun 1 | . 9 . Ballistic Gun 1 | . 5 . Ballistic Cannon 9 | . . 10 Launcher 3 | . . 4 Impact Weapon 8 | . 12 7 Peak Build Rating 14 | 6 9 14 Average Rating 8 | 6 7 8 On Entrance 6 | 6 6 8 Avg Prop Armor Cover (%) 15 | . 15 . Naked Turns . | . . . Heaviest Build 36 | 10 29 36 Greatest Support 40 | 20 40 40 Greatest Overweight (x) 3 | . 3 1 Average Overweight (x) . | . . . Largest Inventory Capacity 15 | 8 15 15 Average Capacity 14 | 8 12 15 Most Carried 15 | 5 15 15 Average Carried 12 | 4 10 12 Final Capacity 15 | 8 15 15 Final Carried 15 | 4 15 10 Class Distribution -------------------- 100% | Mutant Dominant Class ---------------- Mutant | -10/Materials Mutant | -10/Subcaves Resources | -11 -10 -10 ----------- Run | Yrd Mat Sub Matter Collected 1339 | 212 103 1024 Remotely . | . . . Salvage Created 1038 | 81 401 556 Parts 50 | 3 17 30 Haulers Intercepted 2 | . 2 . Recyclers Shooed 1 | 1 . . Parts Field Recycled . | . . . Retrieved Matter . | . . . Parts Self-Destructed 16 | . . 16 Prevented . | . . . Parts Restored . | . . . Kills | -11 -10 -10 ------- Run | Yrd Mat Sub Combat Hostiles Destroyed 25 | . 5 20 Melee 5 | . 3 2 Guns 2 | . 1 1 Cannons 15 | . . 15 AOE 2 | . . 2 Classes Destroyed 9 | 1 4 4 Tunneler 1 | . 1 . Hauler 2 | . 2 . Recycler 3 | 1 2 . Turret 2 | . . 2 Swarmer 7 | . 3 4 Grunt 4 | . 2 2 Sentry 1 | . . 1 Subdweller 13 | . . 13 Zionite 2 | . . 2 Best Kill Streak 6 | 1 6 3 Combat Bots Only 3 | . 3 3 Max Kills in Single Turn 2 | 1 1 2 Gunslinging . | . . . Exploded 1 | . . 1 Melee 1 | . 1 1 Uniques/NPCs Destroyed . | . . . Combat | -11 -10 -10 -------- Run | Yrd Mat Sub Hostile Shots Fired 165 | . 33 132 Missed 51 | . 9 42 Hits 114 | . 24 90 Projectile 114 | . 24 90 AOE 7 | . . 7 Critical Strikes 1 | . . 1 Damage Taken 2165 | . 212 1953 Core 254 | . 31 223 Absorbed by Shields . | . . . Ignored by Resistances 17 | . . 17 Core Remaining (%) 100 | 100 . . Volleys Fired 98 | 2 16 80 Largest 2 | 2 2 2 Hottest 110 | 60 60 110 Shots Fired 172 | 4 32 136 Gun 56 | 4 32 20 Cannon 102 | . . 102 Launcher 14 | . . 14 Special . | . . . Kinetic 142 | 2 16 124 Thermal 30 | 2 16 12 Explosive . | . . . Electromagnetic . | . . . Robot Hit Streak 19 | 4 8 19 Robot Miss Streak 3 | . 1 3 Penetration Max . | . . . Secondary Targets . | . . . Shots Hit Robots 138 | 4 30 104 Core Hits 52 | 2 9 41 Critical Kills . | . . . Critical Parts Destroyed 3 | . 2 1 Critical Strikes 8 | . 2 6 Blast 5 | . . 5 Smash 3 | . 2 1 Melee Attacks 102 | . 35 67 Impact 102 | . 35 67 Slashing . | . . . Piercing . | . . . Sneak Attacks 7 | . 4 3 Combat Hostiles . | . . . Follow-up Attacks 1 | . . 1 Damage Inflicted 2759 | 42 655 2062 Guns 394 | 42 138 214 Cannons 1194 | . . 1194 Explosions 391 | . . 391 Melee 778 | . 515 263 Ramming 2 | . 2 . Kinetic 1721 | 20 58 1643 Thermal 258 | 22 80 156 Explosive . | . . . Electromagnetic . | . . . Impact 778 | . 515 263 Slashing . | . . . Piercing . | . . . Highest Corruption 11 | . . 11 Average Corruption 11 | . . 11 Corruption Purged . | . . . Corruption Blocked . | . . . Effects 46 | . . 46 Message Errors 9 | . . 9 Matter Fused 13 | . . 13 Heat Flow Errors 9 | . . 9 Energy Discharges 8 | . . 8 Data Loss (minor) 4 | . . 4 Data Loss (major) 3 | . . 3 Overload Shots . | . . . Overflow Damage 282 | . 163 119 Projectiles . | . . . Explosions 33 | . . 33 Melee 249 | . 163 86 Knockbacks 23 | . 3 20 Impact 4 | . 3 1 Kinetic 18 | . . 18 Secondary 1 | . . 1 Self-Inflicted Damage 35 | . . 35 Shots 1 | . . 1 Rammed . | . . . Targets Rammed 1 | . 1 . Kicked 1 | . 1 . Crushed . | . . . Highest Temperature 284 | 20 40 284 Average Temperature 76 | 15 22 122 Received Heat Transfer 630 | . 60 570 Siege Activations . | . . . Martial Activations . | . . . Shielding Activations . | . . . Robots Disrupted . | . . . Combat Hostiles . | . . . Robots Corrupted 3 | . 2 1 Combat Hostiles 1 | . 1 . Parts Fried 7 | . 5 2 Impact Corruptions 11 | . 7 4 Robots Melted . | . . . Combat Hostiles . | . . . Parts Melted . | . . . Heat Transferred 424 | 50 175 199 Parts Sabotaged . | . . . Parts Stolen . | . . . Parts Stripped . | . . . Power Chain Reactions . | . . . Alert | -11 -10 -10 ------- Run | Yrd Mat Sub Maximum Alert Level . | . . . Low Security (%) 100 | 100 100 . Level 1 . | . . . Level 2 . | . . . Level 3 . | . . . Level 4 . | . . . Level 5 . | . . . High Security . | . . . Max Security . | . . . Peak Influence 97 | 5 97 . Initial 3 | . 3 . Average 35 | 2 36 . Influence Increases 629 | 5 179 445 Destroy 0b10 Robot/C 280 | . 100 180 Destroy 0b10 Robot/NC 30 | 5 25 . Destroy Leader 34 | . 24 10 Lose Combat Pursuer 285 | . 30 255 Influence Decreases 443 | . 154 289 Entered New Map 17 | . 2 15 Time Decay 366 | . 152 214 Lost Part 60 | . . 60 Squads Dispatched 1 | . 1 . Investigation . | . . . Extermination . | . . . Reinforcement 1 | . 1 . Assault . | . . . Garrison . | . . . Intercept . | . . . Searches Triggered . | . . . Construction Impeded . | . . . Haulers Reinforced . | . . . Active Scanning Responses . | . . . Cargo Convoy Interrupts . | . . . Stealth | -11 -10 -10 --------- Run | Yrd Mat Sub Distress Signals . | . . . Communications Jammed . | . . . Distress Signals . | . . . Times Spotted 31 | . 7 24 Peak Tracking Total 4 | . 4 3 Tactical Retreats 6 | . 2 4 Traps | -11 -10 -10 ------- Run | Yrd Mat Sub Traps Triggered 3 | . . 3 Indirectly . | . . . Trap Hack Attempts . | . . . Triggered . | . . . Disarmed . | . . . Reprogrammed . | . . . Reused . | . . . Traps Extracted . | . . . Installed . | . . . Triggered . | . . . Machines | -11 -10 -10 ---------- Run | Yrd Mat Sub Machines Disabled 5 | . . 5 Max in Single Turn 2 | . . 2 Machines Repaired . | . . . Machines Dismantled . | . . . Machines Sabotaged . | . . . Overloaded Fab Kills . | . . . Hacking | -11 -10 -10 --------- Run | Yrd Mat Sub Machines Accessed 2 | . . 2 Terminals . | . . . Fabricators . | . . . Repair Stations . | . . . Recycling Units . | . . . Scanalyzers . | . . . Garrison Access . | . . . Total Hacks 6 | . . 6 Successful 6 | . . 6 Failed . | . . . Catastrophic . | . . . Database Lockouts . | . . . Manual . | . . . Terminals . | . . . Fabricators . | . . . Repair Stations . | . . . Recycling Units . | . . . Scanalyzers . | . . . Garrison Access . | . . . Terminal Hacks 6 | . . 6 Record 5 | . . 5 Open Door 1 | . . 1 Fabricator Hacks . | . . . Repair Station Hacks . | . . . Recycling Unit Hacks . | . . . Scanalyzer . | . . . Garrison Access Hacks . | . . . Unauthorized Hacks . | . . . Terminals . | . . . Fabricators . | . . . Repair Stations . | . . . Recycling Units . | . . . Scanalyzers . | . . . Garrison Access . | . . . Data Cores Recovered . | . . . Used . | . . . Hacking Detections . | . . . Full Trace Events . | . . . Feedback Events . | . . . Feedback Blocked . | . . . Robot Schematics Acquired . | . . . Robots Built . | . . . Authchips . | . . . Time . | . . . Total Robot Build Rating . | . . . Part Schematics Acquired . | . . . Parts Built . | . . . Authchips . | . . . Time . | . . . Total Part Build Rating . | . . . Part Studies Acquired . | . . . Parts Repaired . | . . . Time . | . . . Parts Recycled . | . . . Recycled Matter . | . . . Retrieved Matter . | . . . Retrieved Components . | . . . Parts Scanalyzed . | . . . Part Schematics Acquired . | . . . Parts Damaged . | . . . Bothacking | -11 -10 -10 ------------ Run | Yrd Mat Sub Used RIF Installer . | . . . Robots Hacked . | . . . Non-combat . | . . . Combat . | . . . Robot Hacks Applied . | . . . Relay Couplers Released . | . . . Fabnet Peak Effective % . | . . . Robots Rewired . | . . . Allies Hacked . | . . . Hacks Repelled . | . . . Allies | -11 -10 -10 -------- Run | Yrd Mat Sub Total Allies . | . . . Largest Group . | . . . Highest-Rated Group . | . . . Highest-Rated Ally . | . . . Total Orders . | . . . Ally Attacks . | . . . Total Damage . | . . . Kills . | . . . Allies Corrupted . | . . . Allies Melted . | . . . Intel | -11 -10 -10 ------- Run | Yrd Mat Sub Active Infowar (turns) 1306 | . 32 1274 Terrain 32 | . 32 . Seismic 1274 | . . 1274 Robot Analysis Total . | . . . Derelict Logs Recovered 2 | . . 2 Drone Launches . | . . . Drone Recoveries . | . . . Exploration | -11 -10 -10 ------------- Run | Yrd Mat Sub Turns Passed 4661 | 13 447 4201 Spaces Moved 2102 | 5 175 1922 Core 2 | . 2 . Treads 2054 | . 132 1922 Legs 46 | 5 41 . Wheels . | . . . Hover . | . . . Flight . | . . . Fastest Speed 120 | 120 120 160 Average Speed 189 | 120 151 192 Slowest Speed 240 | 120 200 240 Overloaded Moves . | . . . Propulsion Burnouts . | . . . Robots Hopped . | . . . Potential Cave-ins . | . . . Cave-ins Triggered . | . . . Exploration Rate (%) 36 | 2 13 94 Regions Visited 2 Branch Regions 1 Pre-discovered Areas 3 | . . 3 Known Exits Taken . | . . . Unknown Exits Taken 2 | 1 1 . Scrap Searched 9 | . . 9 Spaces Dug 13 | . 3 10 Terrain Destroyed 115 | . 3 112 Melee 12 | . 3 9 Projectile 1 | . . 1 AOE 102 | . . 102 Terrain Rammed . | . . . Walls Destroyed . | . . . Machines Disabled . | . . . Actions | -11 -10 -10 --------- Run | Yrd Mat Sub Total 2443 | 9 270 2164 Wait 73 | . 13 60 Move 2100 | 4 174 1922 Hop . | . . . Pick Up 22 | . 13 9 Fast Attach 9 | . 4 5 Attach 13 | . 1 12 Detach 5 | . 3 2 Swap 18 | 1 6 11 Drop 14 | 2 6 6 Fire 98 | 2 16 80 Melee 90 | . 33 57 Ram . | . . . Kick 1 | . 1 . Crush . | . . . Escape Stasis . | . . . Rewire . | . . . Trap . | . . . Miscellaneous . | . . . Route ------- -11/Scrapyard -10/Materials -10/Subcaves (discovered 3 exits: [*Mat x2] / [*Rec]) History --------- Turn | Location | Event 10 | -11/Scrapyard | Discovered new exit (range 3) 14 | -11/Scrapyard | Entered Materials 331 | -10/Materials | Build established: Mutant 453 | -10/Materials | Discovered new exit (range 3) 461 | -10/Materials | Entered Subcaves 462 | -10/Subcaves | Approached by a straggling Scientist 683 | -10/Subcaves | Discovered new exit (range 8) 946 | -10/Subcaves | Disturbed a concealed Subdweller 1167 | -10/Subcaves | Disturbed a concealed Subdweller 1228 | -10/Subcaves | Lost 4 parts (1p2n1w) 1266 | -10/Subcaves | Shifting Twisted Machinery released Barrage Gun 1296 | -10/Subcaves | Ambushed by Subdweller buried in earth 1377 | -10/Subcaves | Shifting Twisted Machinery released Sub. Laser 1403 | -10/Subcaves | Discovered new exit (range 11) 1423 | -10/Subcaves | Visited Clippyterm 1427 | -10/Subcaves | Learned location of Deep Caves (-7) 1427 | -10/Subcaves | Learned Factory fabricator intel 1506 | -10/Subcaves | Learned Materials trap positions 1551 | -10/Subcaves | Core integrity fell below 50% 1608 | -10/Subcaves | Learned location of Zion (-7) 2184 | -10/Subcaves | A swath of the cavern ceiling suddenly collapsed 3388 | -10/Subcaves | System corruption reached 10% 3629 | -10/Subcaves | Core integrity fell below 20% 3634 | -10/Subcaves | Discovered new exit (range 13) 3836 | -10/Subcaves | Met a Zionite searching for "candidates" 4662 | -10/Subcaves | Destroyed by S-10 Pest with Light Assault Rifle Last Messages --------------- 04370_ System corrupted: Heat flow error (+202). 04380_ Acquired 7 matter. 04382_ Acquired 5 matter. 04401_ System corrupted: Matter fused (-10). 04401_ Acquired 8 matter. 04428_ System corrupted: Energy discharge (-64). 04452_ System corrupted: Matter fused (-10). 04469_ Acquired 4 matter. 04472_ Acquired 1 matter. 04484_ Acquired 3 matter. 04486_ System corrupted: Component data lost. 04499_ Acquired 5 matter. 04503_ 5WT,P,KPALA8QV94RRBJQQ3DUY&I 04541_ System corrupted: Energy discharge (-72). 04571_ System corrupted: Heat flow error (+231). 04605_ QZNTCQ FHAV83SY/C2KV, 04620_ System corrupted: Energy discharge (-80). 04650_ System corrupted: Heat flow error (+259). 04650_ Sub. Power Source destroyed. 04653_ Hammer follow-up attack on S-10 Pest. Map ----- +----------------------------------------------------+ | | | | | ?????????????????????????????????????????????????? | | ?????????????????????????????????????????????????? | | ?????????????????????????????????????????????????? | | ?????????????????????????????????????????????????? | | ?????????????????????????????????????????????????? | | ?????????????????????????????????????????????????? | | ?????????????????????????????????????????????????? | | ?????????????????????????????????????????????????? | | ?????????????????????????????????????????????????? | | ?????????????#######?????????????????????????????? | | ?????????????#"&[["#?????????????????????????????? | | ?????????????# ## #?????????????????????????????? | | ?????????????# %####?????????????????????????????? | | ?????????????##&"###?????????????????????????????? | | ?????????????##!## ###?####??????????????????????? | | ?????????????#" " ### ##????????????????????? | | ??????????#### #? #????????????????????? | | ?????????## ##?? #????????????????????? | | ?????????# ###???# ###??????????????????? | | ?????????## #?????# ##?????????????????? | | ?????????## #?????? #?????????????????? | | ?????????# # ######### #?????????????????? | | ????????## ## #?# ss #?????????????????? | | ????????# # #?## @ #?????????????????? | | ????????# ### #??# ## ###???????????????? | | ????????## # #?## #### #???????????????? | | ????????# ### #?# ##??## #???????????????? | | ????????## ### #?# ##???## #???????????????? | | ?????????# # #### #???## #???????????????? | | ?????????# ## ### #??## #???????????????? | | ????????## ### ### ##?## #####???????????? | | ????????# ## # ##?# #???????????? | | ????????# ## #?## ##??????????? | | ????????# # ##?# # #??????????? | | ???????## ## ## #?# ## ##??????????? | | ???????# ###### ##?# ### #??????????? | | ???????# ##?# ##### #### ##??????????? | | ??????## #### ######## #??????????? | | ?##??## ### ### # ##?????????? | | ## ### ### ##????????? | | #?# & ## #????????? | | #?## =% ### ### #????????? | | ## #?# #####?# ##????????? | | ### ### #### #?????????? | | #### ## % #?????????? | | #???# ## ##????????? | | #???? # # ##" "#????????? | | #???? % ###### "#????????? | +----------------------------------------------------+ Best States ------------- Heat Dissipation 25 Energy Generation 10 Energy Capacity 200 Matter Stores 300 Matter Capacity 300 Sight Range 16 Terrain Scan Range 16 Terrain Scan Density 10 Armor Coverage 100 Resistance: TH 10 Evasion (%) 50 Targeting Accuracy 5 Recoil Reduction 2 Item Schematics ----------------- None Robot Schematics ------------------ None Fabricated ------------ Nothing Repaired ---------- Nothing Studied --------- None Alien Tech Used ----------------- None Achievements -------------- None Challenges ------------ None Game ------ Seed ServoWeaponSpiker Manual? 0 Play Time 00:20:04 Cumulative 411.7 hours Start 2025.12.24 @ 09:22:21 End 2025.12.24 @ 09:39:26 Sessions 1 Manual Loads 0 Difficulty Rogue Special Mode None Game No. 446 Rogue 446 Adventurer 0 Explorer 0 Win Type - Total 13 Types 9/0/2/1/0/0/0/0/0/1 Lore% 84 Gallery% 83 Achievement% 62 Wizard Run 0 Options --------- Layout 0 ASCII 0 Keyboard 1 Movement Numpad Keybinds 0 Fullscreen 2 Font 18/X11 Map View 76x50 Zoom Use 0% Tactical HUD 1 Map Filters NONE Filters NONE Steam 1 RUN: 5af2c980-356e-4964-836c-9471aceaa09b